{"text_format":"1","workbook":"xlsx","n_sheets":5,"sheets":["Dimensions du panneau","LES DONNÉES","CARTE D'INSOLATION - Le Monde","CARTE D'INSOLATION - Afrique","1"],"not_rendered":{"charts":0,"images":2,"macros":0,"external_links":0,"defined_names":5,"comments":1,"pivot_tables":0},"unopened":[],"bounds":{"document_bytes":16777216,"sheet_cells":100000,"rows_first":2000,"rows_last":500,"rows_between":2000,"halvings":0,"cell_chars":16384,"cell_head_chars":4096},"cells_cut":0,"cells_raw":0,"read":"whole","date_system":"1900"}

{"sheet":"Dimensions du panneau","index":0,"n_rows":29,"n_cols":17,"rows_kept":29,"cut":false,"hidden":false,"merged":[[3,2,3,6],[27,2,27,5],[24,2,24,7],[16,2,16,7],[17,5,20,7],[21,5,21,7],[21,1,21,4],[8,2,8,7],[9,3,9,7],[10,3,14,7]]}
[null,"CALCULATRICE SOLAIRE CENTURION",null,null,null,null,null,null,null,null,null,"FOR CALCULATION PURPOSES ONLY - NORMALLY HIDDEN"]
[null,null,null,null,null,null,null,null,null,null,null,null,null,"Factors","Potential losses due to dust etc",0.2]
[null,"Dimensions du panneau",null,null,null,null,null,null,null,null,null,null,null,null,"Maximum charging voltage",18,"Volts"]
[null,null,"Veuillez saisir le nombre d'opérations par jour pour le système utilisé. De plus, entrez le courant de fonctionnement et la durée de cycle s'ils sont différents de la valeur nominale"]
[null,"L'opérateur","Nombre d'opérations par jour","Courant de fonctionnement nominal - Ampères","Courant de fonctionnement si différent de la valeur nominale","Temps de cycle nominal (ouverture et fermeture) - secondes","Temps de cycle si différent de la valeur nominale (ouverture et fermeture)","Tension du système","Tension du système",null,null,"Running Current","Cycle Time","Energy consumed","Controller","Total Energy consumed","System Voltage"]
[null,null,null,{"$f":"IFERROR(VLOOKUP(B6,'LES DONNÉES'!$1:$1048576,2,FALSE),\" \")","v":" "},null,{"$f":"IFERROR(VLOOKUP(B6,'LES DONNÉES'!$1:$1048576,3,FALSE),\" \")","v":" "},null,null,{"$f":"+P6","v":0},"Ah",null,{"$f":"IF(OR(E6=0,E6=\" \"),D6,E6)","v":" "},{"$f":"IF(OR(G6=0,F6=\" \"),F6,F6)","v":" "},{"$f":"+IFERROR(M6*L6/3600*C6,0)","v":0},{"$f":"IFERROR(VLOOKUP(B6,'LES DONNÉES'!$1:$1048576,8,FALSE)*VLOOKUP(B6,'LES DONNÉES'!$1:$1048576,9,FALSE),0)","v":0},{"$f":"+O6+N6","v":0},{"$f":"IFERROR(VLOOKUP(B6,'LES DONNÉES'!$1:$1048576,5,FALSE),H6)","v":0}]
[]
[]
[null,"ACCESSOIRE","Veuillez saisir la quantité d'auxiliaires Centurion utilisés"]
[null,null,"Qty",{"$f":"O10","v":0},null,null,null,null,null,null,null,null,null,null,{"$f":"IF(Q6=12,\"12V System Factor\", IF(Q6=24,\"24V System Factor\",0))","v":0}]
[null,null,null,"Il est conseillé de sélectionner un régulateur pour le système. Le système D10 24V nécessite 2 régulateurs, un avec chaque panneau. N'entrez qu'une quantité de 1 lors du calcul de la demande d'énergie. Important - Le régulateur peut gérer une puissance de panneau de < 500W",null,null,null,null,{"$f":"+P11","v":0},"Ah",null,null,null,{"$f":"IFERROR(VLOOKUP(B11,'LES DONNÉES'!$A$42:$F$73,4,FALSE),0)","v":0},{"$f":"IF(AND($Q$6=24,B11=\"Solar regulator (TES – 30A)\"),1,IF($Q$6=12,1,IF($Q$6=24,0.65,0)))","v":0},{"$f":"+N11*C11*O11","v":0}]
[null,null,null,null,null,null,null,null,{"$f":"+P12","v":0},"Ah",null,null,null,{"$f":"IFERROR(VLOOKUP(B12,'LES DONNÉES'!$A$42:$F$73,4,FALSE),0)","v":0},{"$f":"IF(AND($Q$6=24,B12=\"Solar regulator (TES – 30A)\"),1,IF($Q$6=12,1,IF($Q$6=24,0.65,0)))","v":0},{"$f":"+N12*C12*O12","v":0}]
[null,null,null,null,null,null,null,null,{"$f":"+P13","v":0},"Ah",null,null,null,{"$f":"IFERROR(VLOOKUP(B13,'LES DONNÉES'!$A$42:$F$73,4,FALSE),0)","v":0},0,{"$f":"+N13*C13*O13","v":0}]
[null,null,null,null,null,null,null,null,{"$f":"+P14","v":0},"Ah",null,null,null,{"$f":"IFERROR(VLOOKUP(B14,'LES DONNÉES'!$A$42:$F$73,4,FALSE),0)","v":0},0,{"$f":"+N14*C14*O14","v":0}]
[null,null,null,null,null,null,null,null,{"$f":"+P15","v":0},"Ah",null,null,null,{"$f":"IFERROR(VLOOKUP(B15,'LES DONNÉES'!$A$42:$F$73,4,FALSE),0)","v":0},0,{"$f":"+N15*C15*O15","v":0}]
[null,null,null,null,null,null,null,"TOTAL",{"$f":"+P17","v":0},"Ah"]
[null,null,"Veuillez entrer l'insolation solaire de votre région, reportez-vous à la carte d'insolation solaire de la région ci-jointe. Il est préférable d'être prudent et de sélectionner le chiffre le plus bas de la plage pour chaque zone fournie",null,null,null,null,null,null,null,null,null,null,null,"TOTAL ENERGY",{"$f":"SUM(P6:P16)","v":0}]
[null,"Heures de soleil efficaces (ensoleillement)",null,"Heure(s)/jour",null,"ÉNERGIE totale requise pour couvrir la charge, 20% pour les pertes telles que la saleté sur le panneau, etc. et 15% pour recharger la batterie",null,null,null,null,null,null,null,null,"ADD FOR INEFFICIENCY",{"$f":"+P17/(1-Q18)","v":0},{"$f":"+P2","v":0.2}]
[]
[null,null,null,null,null,null,null,null,{"$f":"+P20","v":0},"Ah",null,null,null,null,"ADD TO RECHARGE BATTERY",{"$f":"+P18/(1-Q20)","v":0},{"$f":"+I22","v":0}]
[null,"Dimensions minimales du panneau solaire",{"$f":"IF(OR(P20=0,C18=0),\" \",P20*P3/C18)","v":" "},"Watts"]
[null,{"$f":"IF(B6=\"D10 sliding gate (24VDC system)\",\"24V System - Require 2 panels, sized as per above, each with its own Solar regulator\",\" \")","v":" "},null,null,null,"Vous souhaitez modifier la franchise autorisée pour recharger la batterie ?"]
[]
[null,"Capacité de la batterie"]
[null,null,"Entrez le nombre de jours consécutifs pendant lesquels le système doit fonctionner avec un minimum d'ensoleillement."]
[null,"Jours d'autonomie",null,"Jours"]
[null,"DoD autorisé pour la batterie utilisée",0.4,null,null,null,null,"  "]
[null,null,"Capacité de la batterie"]
[null,"Total Ah Capacity Needed",{"$f":"IF(OR(ISBLANK(C26),C26=0),\"???\",P17*C26/C27)","v":"???"},"Ah","De préférence en cycle profond"]

{"sheet":"LES DONNÉES","index":1,"n_rows":77,"n_cols":9,"rows_kept":77,"cut":false,"hidden":false,"merged":[]}
[1,2,3,4,5,6,7,8,9]
[]
["L'opérateur","COURANT NOMINAL - Ampères","TEMPS PAR OPÉRATION - SECONDES D'OUVERTURE ET DE FERMETURE","ENERGIE CONSOMMEE PAR OPERATION (CYCLE COMPLET) - Ah","TENSION DU SYSTÈME","L'AUTOMATE","TIRAGE DE COURANT DE QUESSENCE - Ma","ÉNERGIE CONSOMMÉE - Ah","FACTOR"]
["Le D2 Turbo Moteur pour portail coulissants",8,10,{"$f":"+B4*C4/3600","v":2.2222222222222223E-2},12,"Controller - D2 Turbo",95,{"$f":"+G4*24/1000","v":2.2799999999999998},1]
["Le D5-EVO Moteur pour portail coulissants",8,30,6.6666666666666666E-2,12,"Controller - EVO",75,1.8,1]
["Le D10 Moteur pour portail coulissants (système 24V CC)",6,30,0.05,24,"Controller - D10",80,1.92,0.65]
["Le D10 Moteur pour portail coulissants (système 24V CC)",10,20,{"$f":"+B7*C7/3600","v":5.5555555555555552E-2},24,"Controller - D10",80,{"$f":"+G7*24/1000","v":1.92},0.65]
["Le A10 Moteur pour portail coulissants (à l'aide d'un convertisseur CC)",20,30,0.16666666666666666,12,"CP201",16,0.38400000000000001,1]
["Le R3 Moteur pour portail battant (Simple)",4,35,{"$f":"+B9*C9/3600","v":3.888888888888889E-2},12,"CP75",16,{"$f":"+G9*24/1000","v":0.38400000000000001},1]
["Le R3 Moteur pour portail battant (Double)",8,35,{"$f":"+B10*C10/3600","v":7.7777777777777779E-2},12,"CP75",16,{"$f":"+G10*24/1000","v":0.38400000000000001},1]
["Le R5 Moteur pour portail battant (Simple)",5,40,5.5555555555555552E-2,12,"CP75",16,0.38400000000000001,1]
["Le R5 Moteur pour portail battant (Double)",10,40,0.1111111111111111,12,"CP75",16,0.38400000000000001,1]
["Le MAXI-MATE Moteur pour portail battant (Simple)",5,40,5.5555555555555552E-2,12,"CP77",25,0.6,1]
["Le MAXI-MATE Moteur pour portail battant (Double)",10,40,0.1111111111111111,12,"CP77",25,0.6,1]
["Le VECTOR Moteur pour portail battant (V400 - Simple)",2,28,{"$f":"+B15*C15/3600","v":1.5555555555555555E-2},12,"Controller - V-SERIES",48,{"$f":"+G15*24/1000","v":1.1519999999999999},1]
["Le VECTOR Moteur pour portail battant (V500 - Simple)",2,35,1.9444444444444445E-2,12,"Controller - V-SERIES",48,1.1519999999999999,1]
["Le VECTOR Moteur pour portail battant (V400 - Double)",4,28,3.111111111111111E-2,12,"Controller - V-SERIES",48,1.1519999999999999,1]
["Le VECTOR Moteur pour portail battant (V500 - Double)",4,35,3.888888888888889E-2,12,"Controller - V-SERIES",48,1.1519999999999999,1]
["Le VANTAGE Moteur pour portail battant (VT400 - Simple)",2,28,{"$f":"+B19*C19/3600","v":1.5555555555555555E-2},12,"Controller - V-SERIES",73,{"$f":"+G19*24/1000","v":1.752},1]
["Le VANTAGE Moteur pour portail battant (VT500 - Simple)",2,35,1.9444444444444445E-2,12,"Controller - V-SERIES",48,1.1519999999999999,1]
["Le VANTAGE Moteur pour portail battant (VT400 - Double)",4,28,3.111111111111111E-2,12,"Controller - V-SERIES",48,1.1519999999999999,1]
["Le VANTAGE Moteur pour portail battant (VT500 - Double)",4,35,3.888888888888889E-2,12,"Controller - V-SERIES",48,1.1519999999999999,1]
["VERT-X Moteur pour portail battant (VX300 - Simple)",2,25,{"$f":"+B23*C23/3600","v":1.3888888888888888E-2},12,"Controller - V-SERIES",48,{"$f":"+G23*24/1000","v":1.1519999999999999},1]
["VERT-X Moteur pour portail battant (VX300 - Double)",4,32,3.5555555555555556E-2,12,"Controller - V-SERIES",48,1.1519999999999999,1]
["SECTOR barrières levantes  (3M)",2,2.5,{"$f":"+B25*C25/3600","v":1.3888888888888889E-3},12,"Controller - SECTOR",50,{"$f":"+G25*24/1000","v":1.2},1]
["SECTOR barrières levantes  (4.5M or 6.0M)",2,6,3.3333333333333335E-3,12,"Controller - SECTOR",50,1.2,1]
["Le D5-EVO Moteur pour portail coulissants avec avec le module d'étirement d'impulsions",8.1,30,6.7500000000000004E-2,12,"Controller - EVO",75,1.8,1]
[null,null,null,{"$f":"+B28*C28/3600","v":0},null,null,null,{"$f":"+G28*24/1000","v":0}]
[null,null,null,{"$f":"+B29*C29/3600","v":0},null,null,null,{"$f":"+G29*24/1000","v":0}]
[null,null,null,0,null,null,null,0]
[null,null,null,0,null,null,null,0]
[null,null,null,0,null,null,null,0]
[null,null,null,0,null,null,null,0]
[null,null,null,0,null,null,null,0]
[null,null,null,0,null,null,null,0]
[null,null,null,0,null,null,null,0]
[null,null,null,0,null,null,null,0]
[null,null,null,0,null,null,null,0]
[]
[]
["ACCESSOIRES","QUIESCENT CURRENT DRAW  - mA",null,"ENERGY CONSUMED - Ah","SYSTEM VOLTAGE","Peak Consumption"]
["Régulateur solaire (TES – 30A)",10,null,{"$f":"+B42*24/1000","v":0.24},12]
["Régulateur solairer 20A (ESOLRPG020V1)",6,null,{"$f":"+B43*24/1000","v":0.14399999999999999},12]
["Faisceau de sécurité infrarouge i5 - Tx & Rx",67,null,{"$f":"+B44*24/1000","v":1.6080000000000001},12]
["Faisceau de sécurité infrarouge PHOTON",30,null,0.72,12]
["Récepteur CENTURION 1 canal",11,null,{"$f":"+B46*24/1000","v":0.26400000000000001},12]
["Récepteur CENTURION 4 Canaux",25,null,0.6,12,180]
["Récepteur SUPAHELIX",100,null,2.4,12,270]
["G-Switch 22",80,null,1.92,12]
["MYGSM 88",120,null,2.88,12]
["Plaque d'entrée POLOphone ",35,null,0.84,12]
["Combiné POLOphone",25,null,0.6,12]
["G-Speak Classic (Plus)",30,null,0.72,12]
["Interphone GSM MKII",350,null,8.4,12,150]
["SMARTGUARD (Filare)",32,null,0.76800000000000002,12,180]
["Lecteur SOLO",50,null,1.2,12,180]
["Le Controleur LATTICE",50,null,1.2,12,180]
["Lecteur esclave LATTICE",50,null,{"$f":"+B58*24/1000","v":1.2},12,180]
["Détecteur de boucle autonome FLUX",50,null,{"$f":"+B59*24/1000","v":1.2},12]
["Détecteur de boucle de plug-in FLUX 11",50,null,1.2,12]
["Convertisseur CA-CC (utilisé avec A10 pour la batterie de secours)",150,null,3.6,12]
["Barre palpeuse (Bords sensibles)",30,null,{"$f":"+B62*24/1000","v":0.72},12]
["Module de civière d'impulsion",7,null,{"$f":"+B63*24/1000","v":0.16800000000000001},12]
["G-ULTRA 2G",33,null,{"$f":"+B64*24/1000","v":0.79200000000000004},12]
["G-SPEAK ULTRA 2G",72,null,1.728,12]
["G-ULTRA 3G PENTA BAND",40,null,0.96,12]
[null,null,null,0]
[null,null,null,{"$f":"+B68*24/1000","v":0}]
[null,null,null,0]
[null,null,null,0]
[null,null,null,0]
[null,null,null,0]
[null,null,null,0]
[]
["Tension du système"]
[12]
[24]

{"sheet":"CARTE D'INSOLATION - Le Monde","index":2,"n_rows":37,"n_cols":2,"rows_kept":37,"cut":false,"hidden":false,"merged":[[24,0,24,1],[0,0,0,3]]}
["CARTE D'INSOLATION - Le Monde"]
[]
[]
[]
[]
[]
[]
[]
[]
[]
[]
[]
[]
[]
[]
[]
[]
[]
[]
[]
[]
[]
[]
[]
["FRANCE"]
["CITY","Effective Sun Hours"]
["RENNE",1.24]
["NANTES",1.46]
["LE HAVRE",1.18]
["BORDEAUX",1.81]
["TOULOUSE",2.5299999999999998]
["MARSEILLE",2.97]
["NICE",2.58]
["MONTPELLIER",1.65]
["LYON",1.56]
["REIMS",0.95]
["PARIS",1.1100000000000001]

{"sheet":"CARTE D'INSOLATION - Afrique","index":3,"n_rows":1,"n_cols":1,"rows_kept":1,"cut":false,"hidden":false,"merged":[[0,0,0,3]]}
["CARTE D'INSOLATION - Afrique"]

{"sheet":"1","index":4,"n_rows":1,"n_cols":1,"rows_kept":1,"cut":false,"hidden":true,"merged":[]}
["solar"]